bitfinex-derivatives/quotes_BTCF0:USTF0_20250609
["timestamp","ask_amount","ask_price","bid_price","bid_amount"]
[1749479045900,0.68197657,107590.0,107580.0,0.38094651]
[1749479046110,0.68197657,107590.0,107580.0,0.49574519]
[1749479046301,0.68197657,107590.0,107580.0,0.71134519]
[1749479046503,0.75567657,107590.0,107580.0,0.80429495]
[1749479046703,0.82887657,107590.0,107580.0,0.80429495]
[1749479046910,0.82899326,107590.0,107580.0,0.58869495]
[1749479047303,0.82899326,107590.0,107580.0,0.39808176]
[1749479047608,0.82899326,107590.0,107580.0,0.58388906]
[1749479048309,1.37363326,107590.0,107580.0,0.58388906]
[1749479051113,1.37363326,107590.0,107580.0,0.39355574]
[1749479051314,1.37363326,107590.0,107580.0,0.58388906]
[1749479051505,1.37359326,107590.0,107580.0,0.46909038]
[1749479051706,1.37359326,107590.0,107580.0,0.61258874]
[1749479051707,0.82899326,107590.0,107580.0,0.61258874]
[1749479051908,0.82939326,107590.0,107580.0,0.61258874]
[1749479052109,1.37395326,107590.0,107580.0,0.61258874]
[1749479052912,0.48147858,107620.0,107580.0,1.55628146]
[1749479052913,0.2321847,107620.0,107580.0,1.55628146]
[1749479053214,0.8370594,107620.0,107610.0,0.85189704]
[1749479053414,0.9108594,107620.0,107610.0,0.85189704]
[1749479053620,0.9112594,107620.0,107610.0,0.30066734]
[1749479053812,0.93548314,107620.0,107610.0,0.58393746]
[1749479054117,0.93558591,107620.0,107610.0,0.58393746]
[1749479055114,1.01096405,107620.0,107610.0,0.94473746]
[1749479056110,1.01096405,107620.0,107610.0,0.75440414]
[1749479056311,1.01096405,107620.0,107610.0,0.94473746]
[1749479056509,1.01096405,107620.0,107610.0,0.75440414]
[1749479056711,1.01096405,107620.0,107610.0,0.39360414]
[1749479057015,0.37872545,107620.0,107610.0,0.58393746]
[1749479057214,0.92320545,107620.0,107610.0,0.94473746]
[1749479057409,1.06740545,107620.0,107610.0,0.58393746]
[1749479058304,0.62888545,107620.0,107610.0,0.58393746]
[1749479058521,1.06736545,107620.0,107610.0,0.58393746]
[1749479059517,1.07142205,107620.0,107610.0,0.58393746]
[1749479061015,1.07142205,107620.0,107610.0,0.94473746]
[1749479062213,0.58650595,107620.0,107610.0,0.94473746]
[1749479062421,1.02454595,107620.0,107610.0,0.94473746]
[1749479062718,1.02494595,107620.0,107610.0,0.94473746]
[1749479063415,0.10376125,107620.0,107610.0,0.94473746]
[1749479063606,0.46722311,107620.0,107610.0,1.15933746]
[1749479064116,0.02878311,107620.0,107610.0,1.15933746]
[1749479064314,0.00455937,107620.0,107610.0,1.04452668]
[1749479064505,0.00415937,107620.0,107610.0,1.18802504]
[1749479064710,0.00455937,107620.0,107610.0,1.18382407]
[1749479066011,0.00455937,107620.0,107610.0,1.32732243]
[1749479066207,0.00455937,107620.0,107610.0,1.13698911]
[1749479066411,0.00455937,107620.0,107610.0,1.32732243]
[1749479068018,0.00415937,107620.0,107610.0,1.32732243]
[1749479068635,0.25905285,107640.0,107630.0,0.1857211]
[1749479068818,0.699827,107650.0,107640.0,0.1857038]
[1749479069019,1.1977214,107650.0,107640.0,0.99260298]
[1749479069323,1.3349214,107650.0,107640.0,0.99260298]
[1749479069520,1.3345214,107650.0,107640.0,1.08550093]
[1749479069721,1.40369631,107650.0,107640.0,1.08550093]
[1749479069926,1.40329631,107650.0,107640.0,1.08550093]
[1749479070120,1.40369631,107650.0,107640.0,1.08550093]
[1749479070326,1.42722653,107650.0,107640.0,0.89516761]
[1749479070530,1.42722653,107650.0,107640.0,0.97093507]
[1749479070826,1.42722653,107650.0,107640.0,0.90193507]
[1749479071028,1.78802653,107650.0,107640.0,0.27860175]
[1749479071327,2.07125585,107650.0,107640.0,0.18078982]
[1749479071522,1.88092253,107650.0,107640.0,0.18078982]
[1749479071925,3.38052253,107650.0,107640.0,0.18078982]
[1749479072229,3.38092253,107650.0,107640.0,0.36649362]
[1749479072922,3.38092253,107650.0,107640.0,0.83073507]
[1749479072923,0.02360513,107650.0,107640.0,0.83073507]
[1749479073123,0.20929173,107650.0,107640.0,1.16120093]
[1749479073326,0.20969173,107650.0,107640.0,0.82676761]
[1749479073622,0.86317173,107650.0,107640.0,0.63940175]
[1749479074024,0.86317173,107650.0,107640.0,0.64140175]
[1749479074223,0.86317173,107650.0,107640.0,0.64340175]
[1749479074630,0.42489173,107650.0,107640.0,0.64340175]
[1749479074830,0.97302833,107650.0,107640.0,0.64340175]
[1749479075024,0.42894833,107650.0,107640.0,0.83830106]
[1749479075224,0.75782833,107650.0,107640.0,0.98170106]
[1749479075426,0.75742833,107650.0,107640.0,0.98170106]
[1749479075628,0.21374833,107650.0,107640.0,0.98170106]
[1749479075822,0.75778833,107650.0,107640.0,0.78680175]
[1749479076027,0.75778833,107650.0,107640.0,0.87263251]
[1749479076332,0.75774833,107650.0,107640.0,0.36843251]
[1749479076530,0.89504833,107650.0,107640.0,0.36843251]
[1749479077829,0.89504833,107650.0,107640.0,0.36743251]
[1749479078027,1.04914833,107650.0,107640.0,0.36743251]
[1749479078827,1.60484764,107650.0,107640.0,0.18072871]
[1749479079330,1.60484764,107650.0,107640.0,0.09489795]
[1749479079725,1.60480764,107650.0,107640.0,0.09489795]
[1749479079928,1.40990833,107650.0,107640.0,0.28060175]
[1749479080125,1.40990833,107650.0,107640.0,0.09489795]
[1749479080325,1.40990833,107650.0,107640.0,0.28060175]
[1749479080326,2.90990833,107650.0,107640.0,0.28060175]
[1749479080534,2.90990833,107650.0,107640.0,0.36643251]
[1749479080826,3.10642437,107650.0,107640.0,0.09436054]
[1749479081238,2.56246437,107650.0,107640.0,0.09436054]
[1749479081424,3.10642437,107650.0,107640.0,0.09436054]
[1749479081625,3.19932037,107650.0,107640.0,0.09436054]
[1749479082028,3.19932037,107650.0,107640.0,0.09336054]
[1749479082432,3.00402106,107650.0,107640.0,0.09336054]
[1749479082631,3.00442106,107650.0,107640.0,0.1791913]
[1749479083236,3.00442106,107650.0,107640.0,0.1781913]
[1749479083738,3.00442106,107650.0,107640.0,0.3638951]
[1749479085335,3.00442106,107650.0,107640.0,0.1781913]
[1749479085931,3.19932037,107650.0,107640.0,0.1781913]
[1749479086234,1.96606772,107650.0,107640.0,0.06797506]
[1749479086533,2.00433011,107650.0,107640.0,0.06797506]
[1749479088333,2.00433011,107650.0,107630.0,0.08597037]
[1749479088334,0.3398038,107640.0,107630.0,0.08597037]
[1749479088528,1.52662311,107640.0,107630.0,0.08597037]
[1749479088731,1.61952711,107640.0,107630.0,0.17886832]
[1749479089535,1.61952711,107640.0,107630.0,0.17986832]
[1749479089740,1.61952711,107640.0,107630.0,0.18086832]
[1749479090940,2.9246278,107640.0,107630.0,0.18086832]
[1749479092034,3.4685878,107640.0,107630.0,0.18086832]
[1749479092241,2.9246278,107640.0,107630.0,0.18086832]
[1749479092440,3.4685878,107640.0,107630.0,0.18086832]
[1749479093242,3.4685878,107640.0,107630.0,0.17986832]
[1749479093535,2.9246278,107640.0,107630.0,0.17886832]
[1749479093730,3.4685878,107640.0,107630.0,0.17886832]
[1749479094744,3.3756838,107640.0,107630.0,0.17886832]
[1749479095242,3.56586386,107640.0,107630.0,0.17886832]
[1749479095749,3.02190386,107640.0,107630.0,0.17886832]
[1749479095941,3.56586386,107640.0,107630.0,0.17886832]
[1749479096244,3.56626386,107640.0,107630.0,0.17886832]
[1749479099542,3.56622386,107640.0,107630.0,0.17886832]
[1749479100344,0.2005376,107620.0,107590.0,0.14349836]
[1749479100538,0.5465728,107600.0,107590.0,0.142]
[1749479100744,0.5465728,107600.0,107590.0,0.42069668]
[1749479100947,0.1857728,107600.0,107590.0,0.42069668]
[1749479101145,0.1857728,107600.0,107590.0,0.61087674]
[1749479101340,0.18588855,107600.0,107590.0,0.97167674]
[1749479101545,0.73020855,107600.0,107590.0,0.97667674]
[1749479101752,0.21019854,107600.0,107590.0,0.97667674]
[1749479102152,0.75411854,107600.0,107590.0,0.97667674]
[1749479102351,0.21019854,107600.0,107590.0,0.97667674]
[1749479102650,0.75411854,107600.0,107590.0,0.97667674]
[1749479103152,0.21019854,107600.0,107590.0,0.98167674]
[1749479103348,0.75415854,107600.0,107590.0,0.98167674]
[1749479104249,0.830204,107600.0,107590.0,0.97667674]
[1749479104449,0.830204,107600.0,107590.0,0.97967674]
[1749479104652,0.286244,107600.0,107590.0,0.97967674]
[1749479104960,0.830044,107600.0,107590.0,0.78949668]
[1749479105142,0.830044,107600.0,107590.0,0.97767674]
[1749479105547,0.286244,107600.0,107590.0,1.04647674]
[1749479105958,0.830124,107600.0,107590.0,1.04647674]
[1749479106167,0.8341806,107600.0,107590.0,1.04647674]
[1749479106657,0.8341806,107600.0,107590.0,0.85629668]
[1749479107247,1.1949806,107600.0,107590.0,0.49549668]
[1749479107552,1.1949806,107600.0,107590.0,0.42669678]
[1749479107553,1.25156066,107600.0,107590.0,0.42669678]
[1749479107954,1.61236066,107600.0,107590.0,0.42669678]
[1749479108257,1.68426066,107600.0,107590.0,0.09890658]
[1749479109056,1.4940806,107600.0,107590.0,0.09890658]
[1749479109254,3.18426066,107600.0,107590.0,0.09890658]
[1749479109757,3.27720466,107600.0,107590.0,0.05804692]
[1749479111657,3.23820466,107600.0,107590.0,0.05804692]
[1749479112761,3.23820466,107600.0,107590.0,0.02902142]
[1749479113055,0.1858247,107570.0,107560.0,0.11508933]
[1749479113258,0.185842,107560.0,107550.0,0.61848933]
[1749479113562,0.546642,107560.0,107550.0,0.44354853]
[1749479113763,0.546642,107560.0,107550.0,0.6116063]
[1749479114453,0.538642,107560.0,107550.0,0.6146063]
[1749479114856,1.082562,107560.0,107550.0,0.6146063]
[1749479115256,1.082562,107560.0,107550.0,0.6176063]
[1749479115662,1.082562,107560.0,107550.0,0.42742624]
[1749479115858,1.082562,107560.0,107550.0,0.6176063]
[1749479116162,0.721762,107560.0,107550.0,0.6176063]
[1749479116361,0.721762,107560.0,107550.0,0.6856063]
[1749479116558,0.722162,107560.0,107550.0,0.6856063]
[1749479118767,0.683162,107560.0,107550.0,0.6856063]
[1749479119660,0.139242,107560.0,107550.0,0.6856063]
[1749479119860,0.683162,107560.0,107550.0,1.0464063]
[1749479120364,0.6872186,107560.0,107550.0,1.0464063]
[1749479120964,0.0044566,107560.0,107550.0,0.6856063]
[1749479121179,0.5484566,107560.0,107550.0,1.0464063]
[1749479121563,0.7338985,107560.0,107550.0,1.0464063]
[1749479121764,0.7342985,107560.0,107550.0,1.0464063]
[1749479122771,0.7342585,107560.0,107550.0,1.0464063]
[1749479125866,0.1512985,107560.0,107550.0,1.0464063]
[1749479126172,0.6952585,107560.0,107550.0,1.0464063]
[1749479126472,0.6993151,107560.0,107550.0,1.0464063]
[1749479127374,0.6993151,107560.0,107550.0,0.6856063]
[1749479127560,0.6993151,107560.0,107550.0,0.24156704]
[1749479127766,1.1276151,107560.0,107550.0,0.09896704]
[1749479127974,1.38609516,107560.0,107550.0,0.09896704]
[1749479128165,1.54031449,107560.0,107550.0,0.11154718]
[1749479128361,1.34107648,107560.0,107550.0,0.09896704]
[1749479128566,1.34107648,107560.0,107550.0,0.11163104]
[1749479128874,0.79711648,107560.0,107550.0,0.29742921]
[1749479129070,1.34107648,107560.0,107550.0,0.09896704]
[1749479129263,1.34107648,107560.0,107550.0,0.18095015]
[1749479129473,1.34147648,107560.0,107550.0,0.16836704]
[1749479129775,1.34147648,107560.0,107550.0,0.18096924]
[1749479129968,1.34147648,107560.0,107550.0,0.18096948]
[1749479130364,0.79751648,107560.0,107550.0,0.16836704]
[1749479130570,1.34447648,107560.0,107550.0,0.16536704]
[1749479130779,1.34447648,107560.0,107550.0,0.36382813]
[1749479130971,1.34447648,107560.0,107550.0,0.18756288]
[1749479131277,1.34447648,107560.0,107550.0,0.18756159]
[1749479131467,1.34447648,107560.0,107550.0,0.18756144]
[1749479131668,1.34447648,107560.0,107550.0,0.18758117]
[1749479131969,1.34447648,107560.0,107550.0,0.37344431]
[1749479132172,1.34447648,107560.0,107550.0,0.37344592]
[1749479132569,1.34447648,107560.0,107550.0,0.37344642]
[1749479132775,1.34447648,107560.0,107550.0,0.37344641]
[1749479132974,1.30547648,107560.0,107550.0,0.37344641]
[1749479133171,1.30547648,107560.0,107550.0,0.37344628]
[1749479133671,0.76151648,107560.0,107550.0,0.36082416]
[1749479133875,1.30547648,107560.0,107550.0,0.36082416]
[1749479134080,1.30547648,107560.0,107550.0,0.37345853]
[1749479134378,1.30547648,107560.0,107550.0,0.36082416]
[1749479134577,1.30547648,107560.0,107550.0,0.37345851]
[1749479134780,1.30547648,107560.0,107550.0,0.37345592]
[1749479134981,1.30547648,107560.0,107550.0,0.37345813]
[1749479135481,1.30547648,107560.0,107550.0,0.10556496]
[1749479135675,1.85645654,107560.0,107550.0,0.10556496]
[1749479135876,1.85645654,107560.0,107550.0,0.11827365]
[1749479136075,1.85645654,107560.0,107550.0,0.10556496]
[1749479136477,1.66627648,107560.0,107550.0,0.11832093]
[1749479136674,1.85645654,107560.0,107550.0,0.11828811]
[1749479136875,1.85645654,107560.0,107550.0,0.11827247]
[1749479137077,1.49565654,107560.0,107550.0,0.11825949]
[1749479137278,0.95169654,107560.0,107550.0,0.10556496]
[1749479137475,1.30539648,107560.0,107550.0,0.304102]
[1749479137668,0.76151648,107560.0,107550.0,0.444636]
[1749479137973,0.76151648,107560.0,107550.0,0.44463545]
[1749479138179,0.76151648,107560.0,107550.0,0.44463427]
[1749479138379,0.75245876,107560.0,107550.0,0.43192426]
[1749479138579,0.75245876,107560.0,107550.0,0.54701359]
[1749479138780,1.71773876,107560.0,107550.0,0.44456945]
[1749479138982,1.71773876,107560.0,107550.0,0.44457468]
[1749479139379,1.71773876,107560.0,107550.0,0.44459017]
[1749479139678,1.71773876,107560.0,107550.0,0.55967967]
[1749479139884,1.71773876,107560.0,107550.0,0.54701359]
[1749479140082,1.80939783,107560.0,107550.0,0.43192426]
[1749479140585,1.80939783,107560.0,107550.0,0.54701359]
[1749479140786,1.80939783,107560.0,107550.0,0.54701349]
[1749479141489,1.80939783,107560.0,107550.0,0.22065429]
[1749479141688,1.99957789,107560.0,107550.0,0.22065429]
[1749479141990,1.99957789,107560.0,107550.0,0.11822177]
[1749479142180,1.99957789,107560.0,107550.0,0.2333111]
[1749479142486,2.03889721,107560.0,107550.0,0.11822177]
[1749479143086,2.03889721,107560.0,107550.0,0.11828028]
[1749479143385,2.03889721,107560.0,107550.0,0.11828024]
[1749479143588,2.03889721,107560.0,107550.0,0.11829662]
[1749479143886,2.03889721,107560.0,107550.0,0.11830871]
[1749479144186,2.03885721,107560.0,107550.0,0.11830871]
[1749479144684,2.03885721,107560.0,107550.0,0.11830807]
[1749479144888,2.03885721,107560.0,107550.0,0.11830794]
[1749479145188,2.03885721,107560.0,107550.0,0.10556496]
[1749479145681,2.03885721,107560.0,107550.0,0.11830767]
[1749479145885,2.03885721,107560.0,107550.0,0.11830788]
[1749479146294,2.03885721,107560.0,107550.0,0.10556496]
[1749479146593,2.03885721,107560.0,107550.0,0.11830262]
[1749479146893,2.03885721,107560.0,107550.0,0.11830251]
[1749479147192,2.03885721,107560.0,107550.0,0.11830252]
[1749479147686,1.99953789,107560.0,107550.0,0.31830252]
[1749479147891,1.45569789,107560.0,107550.0,0.31830252]
[1749479148089,1.99953789,107560.0,107550.0,0.31830252]
[1749479148284,1.99953789,107560.0,107550.0,0.3183416]
[1749479148490,1.99047951,107560.0,107550.0,0.30556496]
[1749479148689,1.99047951,107560.0,107550.0,0.3183414]
[1749479148886,1.99047951,107560.0,107550.0,0.30556496]
[1749479148887,1.99453611,107560.0,107550.0,0.30556496]
[1749479149498,1.99453611,107560.0,107550.0,0.3183414]
[1749479149499,1.80435605,107560.0,107550.0,0.3183414]
[1749479149792,0.89971605,107560.0,107550.0,0.61929023]
[1749479150096,1.44351605,107560.0,107550.0,0.75141379]
[1749479150490,1.44311605,107560.0,107550.0,0.75141379]
[1749479150691,1.44351605,107560.0,107550.0,0.75141379]
[1749479154202,1.40451605,107560.0,107550.0,0.75141379]
[1749479155900,0.11285593,107560.0,107550.0,1.25950452]
[1749479156107,0.73677813,107560.0,107550.0,1.25950452]
[1749479156300,0.73717813,107560.0,107550.0,1.40300288]
[1749479156506,0.73677813,107560.0,107550.0,1.40300288]
[1749479156903,0.63109813,107560.0,107550.0,1.40300288]
[1749479157105,0.00717593,107560.0,107550.0,1.40300288]
[1749479157300,0.00013961,107570.0,107560.0,0.1858422]
[1749479157499,0.43539961,107570.0,107560.0,1.16447032]
[1749479157707,0.0004,107570.0,107560.0,1.61740061]
[1749479157909,0.43808,107570.0,107560.0,1.71036765]
[1749479158506,0.43815609,107570.0,107560.0,1.71036765]
[1749479158697,0.43855609,107570.0,107560.0,1.71036765]
[1749479159410,0.43855609,107570.0,107560.0,1.50943736]
[1749479160305,0.00047609,107570.0,107560.0,1.26243736]
[1749479160607,0.54379609,107570.0,107560.0,1.71243736]
[1749479160901,0.54419609,107570.0,107560.0,1.71243736]
[1749479161309,0.54419609,107570.0,107560.0,1.60649752]
[1749479162305,0.54419609,107570.0,107560.0,1.41631746]
[1749479162808,0.54419609,107570.0,107560.0,1.60649752]
[1749479163807,0.00047609,107570.0,107560.0,1.62904548]
[1749479164000,7.609e-05,107570.0,107560.0,1.62904548]
[1749479164304,0.00047609,107570.0,107560.0,1.48498532]
[1749479164499,0.00047609,107570.0,107560.0,1.66536765]
[1749479165102,0.19035769,107570.0,107560.0,1.41623316]
[1749479166004,0.00453269,107570.0,107560.0,1.41623316]
[1749479167711,0.00453269,107570.0,107560.0,1.60641322]
[1749479167910,0.00453269,107570.0,107560.0,1.60541322]
[1749479168109,0.00453269,107570.0,107560.0,1.60341322]
[1749479168709,0.00453269,107570.0,107560.0,1.51044522]
[1749479169510,0.00453269,107570.0,107560.0,1.32026516]
[1749479169707,0.19035769,107570.0,107560.0,1.32026516]
[1749479169907,0.19035769,107570.0,107560.0,0.95946516]
[1749479170210,0.19035769,107570.0,107560.0,0.93059457]
[1749479171006,0.19035769,107570.0,107560.0,0.74041451]
[1749479171304,0.19035769,107570.0,107560.0,0.85739457]
[1749479171499,0.19035769,107570.0,107560.0,0.92959457]
[1749479171912,0.19035769,107570.0,107560.0,0.74375237]
[1749479172210,0.19035769,107570.0,107560.0,0.29296704]
[1749479172211,0.55115769,107570.0,107560.0,0.29296704]
[1749479172418,0.69135769,107570.0,107560.0,0.29296704]
[1749479173006,1.12919769,107570.0,107560.0,0.29296704]
[1749479173311,1.13019769,107570.0,107560.0,0.29296704]
[1749479173911,1.32037775,107570.0,107560.0,0.29296704]
[1749479174819,1.32237775,107570.0,107560.0,0.29296704]
[1749479175316,1.28337775,107570.0,107560.0,0.29296704]
[1749479175509,1.28037775,107570.0,107560.0,0.29296704]
[1749479175709,1.28437775,107570.0,107560.0,0.29296704]
[1749479176106,0.1858768,107540.0,107530.0,0.14405994]
[1749479176315,0.1858941,107530.0,107520.0,0.32286312]
[1749479176618,0.63313051,107530.0,107520.0,0.84955476]
[1749479176806,0.75102461,107530.0,107520.0,0.6529218]
[1749479177005,0.75142461,107530.0,107520.0,0.6529218]
[1749479177210,0.75152126,107530.0,107520.0,0.6529218]
[1749479177509,0.56562716,107530.0,107520.0,1.0137218]
[1749479177712,0.75152126,107530.0,107520.0,1.0137218]
[1749479177914,0.12742716,107530.0,107520.0,1.0147218]
[1749479178212,0.64055923,107530.0,107520.0,1.2147218]
[1749479178810,0.82645333,107530.0,107520.0,1.2157218]
[1749479180406,0.83050993,107530.0,107520.0,1.2157218]
[1749479181120,0.64465583,107530.0,107520.0,1.2157218]
[1749479181504,0.83054993,107530.0,107520.0,1.2157218]
[1749479182317,0.79154993,107530.0,107520.0,1.2157218]
[1749479183219,0.79165814,107530.0,107520.0,1.2157218]
[1749479184516,0.81302169,107530.0,107520.0,1.2157218]
[1749479185715,0.62712759,107530.0,107520.0,1.2157218]
[1749479186217,0.08364759,107530.0,107520.0,1.33071986]
[1749479186423,0.59626535,107530.0,107520.0,1.2157218]
[1749479186717,0.59666535,107530.0,107520.0,1.2157218]
[1749479187322,0.6189854,107530.0,107520.0,1.2157218]
[1749479187820,0.59666535,107530.0,107520.0,1.2157218]
[1749479188725,0.05322535,107530.0,107520.0,1.2157218]
[1749479189023,0.49110535,107530.0,107520.0,1.2157218]
[1749479189220,0.00013961,107540.0,107530.0,0.1858941]
[1749479189421,0.1344,107550.0,107540.0,0.1858769]
[1749479189422,0.12725503,107550.0,107540.0,0.1858769]
[1749479189718,0.02169503,107550.0,107540.0,0.98799625]
[1749479189924,0.43788,107550.0,107540.0,1.08098058]
[1749479190420,0.62420748,107550.0,107540.0,1.28098058]
[1749479191017,0.62520748,107550.0,107540.0,1.28098058]
[1749479191622,0.70035544,107550.0,107540.0,1.28098058]
[1749479192316,0.70035544,107550.0,107540.0,1.30979373]
[1749479193519,0.72196323,107550.0,107540.0,1.30979373]
[1749479194613,0.10228023,107550.0,107540.0,1.30979373]
[1749479194819,0.54012023,107550.0,107540.0,1.30979373]
[1749479195126,0.72597983,107550.0,107540.0,1.30979373]
[1749479195324,0.72597983,107550.0,107540.0,0.68851367]
[1749479195520,1.41385989,107550.0,107540.0,0.55184661]
[1749479195726,1.41385989,107550.0,107540.0,0.40809417]
[1749479195921,1.41385989,107550.0,107540.0,0.59397107]
[1749479196520,0.60993983,107550.0,107540.0,0.59397107]
[1749479196720,0.04167244,107550.0,107540.0,1.27875113]
[1749479196919,0.04167244,107550.0,107540.0,1.23384129]
[1749479197120,0.04167244,107550.0,107540.0,1.23484129]
[1749479197321,0.58491244,107550.0,107540.0,1.23484129]
[1749479197526,0.58540084,107550.0,107540.0,1.23484129]
[1749479198222,0.58540084,107550.0,107540.0,1.23584129]
[1749479198427,0.58540084,107550.0,107540.0,1.37959373]
[1749479198827,0.04216084,107550.0,107540.0,1.37959373]
[1749479199022,0.58536084,107550.0,107540.0,1.37959373]
[1749479200125,0.547745,107550.0,107540.0,1.37959373]
[1749479201128,0.53265062,107550.0,107540.0,1.37959373]
[1749479201334,0.53265062,107550.0,107540.0,1.43877158]
[1749479201834,0.53670722,107550.0,107540.0,1.43877158]
[1749479202131,0.72264403,107550.0,107540.0,1.23584129]
[1749479202327,0.72264403,107550.0,107540.0,0.97546123]
[1749479202519,0.86274403,107550.0,107540.0,0.69385387]
[1749479202722,0.93314403,107550.0,107540.0,0.62505387]
[1749479203228,1.12332409,107550.0,107540.0,0.43917697]
[1749479203432,1.48412409,107550.0,107540.0,0.62505387]
[1749479203632,1.48412409,107550.0,107540.0,0.59626661]
[1749479203828,1.48412409,107550.0,107540.0,0.59526661]
[1749479204032,1.48412409,107550.0,107540.0,0.59426661]
[1749479204331,1.0189728,107550.0,107540.0,0.59426661]
[1749479204531,1.0193728,107550.0,107540.0,0.59426661]
[1749479205428,1.0203728,107550.0,107540.0,0.59426661]
[1749479209226,1.0203728,107550.0,107540.0,0.78444667]
[1749479209428,1.3811728,107550.0,107540.0,0.40838971]
[1749479209737,1.57135286,107550.0,107540.0,0.40838971]
[1749479210235,1.57135286,107550.0,107540.0,0.47886123]
[1749479210838,1.57285701,107550.0,107540.0,0.29298433]
[1749479211829,1.57691361,107550.0,107540.0,0.29298433]
[1749479213241,1.03375361,107550.0,107540.0,0.29298433]
[1749479213437,1.57687361,107550.0,107540.0,0.29298433]
[1749479215041,1.3461894,107550.0,107540.0,0.29298433]
[1749479215238,1.53636946,107550.0,107540.0,0.29298433]
[1749479217942,1.49736946,107550.0,107540.0,0.29298433]
[1749479218543,1.65146946,107550.0,107540.0,0.29298433]
[1749479219744,1.4612894,107550.0,107540.0,0.29298433]
[1749479220043,1.65146946,107550.0,107540.0,0.29298433]
[1749479220544,1.65150946,107550.0,107540.0,0.29298433]
[1749479223153,1.10834946,107550.0,107540.0,0.29298433]
[1749479223355,1.65150946,107550.0,107540.0,0.29298433]
[1749479223551,1.4613294,107550.0,107540.0,0.29298433]
[1749479223746,1.65150946,107550.0,107540.0,0.29298433]
[1749479225452,1.74449346,107550.0,107540.0,0.29298433]
[1749479225654,1.63257726,107550.0,107540.0,0.29659956]
[1749479225853,3.31843686,107550.0,107540.0,0.25122424]
[1749479226047,3.31843686,107550.0,107540.0,0.19326289]
[1749479226248,3.31843686,107550.0,107540.0,0.20590361]
[1749479226442,3.31843686,107550.0,107540.0,0.23952722]
[1749479226647,3.31843686,107550.0,107540.0,0.15488322]
[1749479226648,3.33524771,107550.0,107540.0,0.15488322]
[1749479226849,3.37560004,107550.0,107540.0,0.15488757]
[1749479227046,3.37560004,107550.0,107540.0,0.15490417]
[1749479227251,3.37560004,107550.0,107540.0,0.15491742]
[1749479227446,3.37560004,107550.0,107540.0,0.14224241]
[1749479227656,2.83244004,107550.0,107540.0,0.15491652]
[1749479227857,3.37540004,107550.0,107540.0,0.15491718]
[1749479228057,3.37540004,107550.0,107540.0,0.14224241]
[1749479228356,3.37540004,107550.0,107540.0,0.15492452]
[1749479228653,3.37540004,107550.0,107540.0,0.15492579]
[1749479228858,3.37540004,107550.0,107540.0,0.06765755]
[1749479229160,3.37540004,107550.0,107540.0,0.08038161]
[1749479229358,3.33504771,107550.0,107540.0,0.08038161]
[1749479229560,3.33504771,107550.0,107540.0,0.08037912]
[1749479229751,3.37538172,107550.0,107540.0,0.06765755]
[1749479230058,3.37538172,107550.0,107540.0,0.08037884]
[1749479230361,3.3753933,107550.0,107540.0,0.08037754]
[1749479230551,3.3753933,107550.0,107540.0,0.08037746]
[1749479230752,3.3753933,107550.0,107540.0,0.06765755]
[1749479231255,3.3753933,107550.0,107540.0,0.08044647]
[1749479231456,3.3753933,107550.0,107540.0,0.08044728]
[1749479231760,3.3753933,107550.0,107540.0,0.08044684]
[1749479232259,3.3753933,107550.0,107540.0,0.08046811]
[1749479232455,3.37531609,107550.0,107540.0,0.06765755]
[1749479232656,3.34952197,107550.0,107540.0,0.08984449]
[1749479232962,3.31052197,107550.0,107540.0,0.07703225]
[1749479233353,3.31052197,107550.0,107540.0,1e-08]
[1749479233651,3.31061575,107550.0,107540.0,0.09298434]
[1749479234258,3.31061575,107550.0,107540.0,0.08793658]
[1749479234453,2.76765575,107550.0,107540.0,0.08793658]
[1749479234863,3.31061575,107550.0,107540.0,0.28793658]
[1749479235662,2.76765575,107550.0,107540.0,0.28793658]
[1749479235861,3.31061575,107550.0,107540.0,0.28793658]
[1749479237061,2.76765575,107550.0,107540.0,0.28793658]
[1749479237263,2.89284937,107550.0,107540.0,0.28793658]
[1749479237453,1.43279107,107550.0,107540.0,0.42153658]
[1749479237656,1.62337113,107550.0,107540.0,0.42153658]
[1749479238969,1.62337113,107550.0,107540.0,0.28793658]
[1749479239166,1.69087113,107550.0,107540.0,0.28793658]
[1749479239966,1.65187113,107550.0,107540.0,0.28793658]
[1749479243765,1.36485107,107550.0,107540.0,0.28793658]
[1749479243965,1.36445107,107550.0,107540.0,0.54094196]
[1749479244168,1.36079447,107550.0,107540.0,0.54094196]
[1749479244467,1.36079447,107550.0,107540.0,0.72681876]
[1749479244664,0.26267277,107550.0,107540.0,1.27779882]
[1749479244868,0.79045578,107550.0,107540.0,1.30658608]
[1749479245069,0.79005578,107550.0,107540.0,1.50951637]
[1749479245269,0.79451238,107550.0,107540.0,1.36532373]
[1749479245571,0.79451238,107550.0,107540.0,1.31949991]
[1749479245771,0.79451238,107550.0,107540.0,1.11656962]
[1749479245971,0.79447238,107550.0,107540.0,1.11656962]
[1749479246869,0.25163238,107550.0,107540.0,1.11656962]
[1749479247173,0.21263238,107550.0,107540.0,1.11656962]
[1749479247372,0.75539238,107550.0,107540.0,1.11656962]
[1749479247574,0.31795238,107550.0,107540.0,1.11656962]
[1749479247769,0.75539238,107550.0,107540.0,1.11656962]
[1749479248973,0.90949238,107550.0,107540.0,1.11656962]
[1749479249171,0.90849238,107550.0,107540.0,1.11656962]
[1749479250775,0.90849238,107550.0,107540.0,1.08753508]
[1749479252071,1.45947244,107550.0,107540.0,0.46955828]
[1749479252271,1.22343244,107550.0,107540.0,0.15181858]
[1749479252572,1.22343244,107550.0,107540.0,0.17471293]
[1749479252573,1.66083244,107550.0,107540.0,0.17471293]
[1749479253073,3.16083244,107550.0,107540.0,0.17471293]
[1749479253675,3.16183244,107550.0,107540.0,0.17471293]
[1749479254074,3.12283244,107550.0,107540.0,0.17471293]
[1749479254871,2.93265238,107550.0,107540.0,0.17471293]
[1749479255074,3.12283244,107550.0,107540.0,0.17471293]
[1749479256374,2.18853238,107550.0,107540.0,0.17471293]
[1749479256575,2.73069238,107550.0,107540.0,0.37811293]
[1749479256774,1.30649293,107550.0,107540.0,0.56398973]
[1749479256969,1.30609293,107550.0,107540.0,0.56398973]
[1749479257275,1.30609293,107550.0,107540.0,0.67931143]
[1749479257276,0.94569293,107550.0,107540.0,0.67931143]
[1749479257470,1.30649293,107550.0,107540.0,0.67931143]
[1749479258077,1.30609293,107550.0,107540.0,0.67931143]
[1749479258279,1.30649293,107550.0,107540.0,0.67931143]
[1749479260180,0.76393293,107550.0,107540.0,0.67931143]
[1749479260378,1.30605293,107550.0,107540.0,0.67931143]
[1749479260780,1.30645293,107550.0,107540.0,0.67931143]
[1749479261187,1.26745293,107550.0,107540.0,0.67931143]
[1749479262784,1.26741293,107550.0,107540.0,0.67931143]
[1749479268387,1.22841293,107550.0,107540.0,0.67931143]
[1749479269482,0.42993293,107550.0,107540.0,1.11496979]
[1749479269681,0.86713293,107550.0,107540.0,1.25932603]
[1749479269878,0.86753293,107550.0,107540.0,1.25932603]
[1749479270079,0.08055093,107550.0,107540.0,1.25932603]
[1749479270388,0.62335093,107550.0,107540.0,1.25932603]
[1749479270589,0.08055093,107550.0,107540.0,1.25932603]
[1749479270886,0.70361033,107550.0,107540.0,1.11496979]